[Event "XII Cracow ICC-A 2024"]
[Site "Krakow"]
[Date "2024.06.23"]
[Round "3.6"]
[White "Kelires, Andreas"]
[Black "Czernek, Tymon"]
[Result "1/2-1/2"]
[ECO "B90"]
[WhiteElo "2515"]
[BlackElo "2316"]
[Annotator "TA"]
[PlyCount "88"]
[EventDate "2024.06.20"]
[EventType "swiss"]
[EventCountry "POL"]
[SourceTitle "playchess.com"]
[Source "ChessBase"]
[SourceQuality "1"]
[TimeControl "40/5400+30:1800+30"]

{[%evp 16,88,10,7,0,0,0,0,0,0,0,11,10,0,12,0,0,0,2,-15,0,0,0,-1,3,22,52,45,96,72,82,16,141,147,138,130,196,208,204,159,245,144,150,102,114,99,131,9,6,8,6,4,6,0,12,18,12,-20,-18,-12,-8,-8,-18,-11,-12,-16,0,-15,0,0,0,-10,0,0,0]} 1. e4 {[%emt 0:00:12]} c5 {[%emt 0:01:25]} 2. Nf3 {[%emt 0:00:09]} d6 {[%emt 0:00:06]} 3. d4 {[%emt 0:00:06]} cxd4 {[%emt 0:00:04]} 4. Nxd4 {[%emt 0:00:05]} Nf6 {[%emt 0:00:04]} 5. Nc3 {[%emt 0:00:07]} a6 {[%emt 0:00:04]} 6. Bd3 {[%emt 0:00:06]} e5 {[%emt 0:00:16]} 7. Nde2 {[%emt 0:00:13]} Be7 {[%emt 0:00:45]} 8. O-O {[%emt 0:00:18]} O-O {[%emt 0:00:40]} 9. Kh1 {[%emt 0:00:16] B90: Sicilian Najdorf: Unusual White 6th moves, 6 Be3 Ng4 and 6 Be3 e5.} b5 {[%emt 0:02:17]} 10. Ng3 {[%emt 0:01:43]} b4 {[%emt 0:00:42]} 11. Nd5 {[%emt 0:03:32]} Nxd5 {[%emt 0:02:17]} 12. exd5 {[%emt 0:00:07]} f5 {[%emt 0:04:27]} 13. a3 {[%emt 0:05:05]} bxa3 $146 {[%emt 0:00:56]} ({Predecessor:} 13... f4 14. Ne4 Bb7 15. axb4 Bxd5 16. Nc3 Bb7 17. Bc4+ Kh8 18. Bd5 Nc6 19. Be4 Bg5 {1-0 Bezgodov,A (2431)-Gavrilov,M (2176) Cheliabinsk Panchenko Memorial op-A 2022 (3)}) 14. Rxa3 {[%emt 0:00:08]} g6 {[%emt 0:01:07]} 15. c4 {[%emt 0:04:42]} Nd7 {[%emt 0:01:42]} 16. f4 {[%emt 0:13:10]} Bf6 {[%emt 0:02:15]} 17. Ne2 {[%emt 0:11:51]} Rb8 {[%emt 0:02:13]} 18. b3 {[%emt 0:01:15]} Re8 {[%emt 0:02:37]} 19. Bd2 {[%emt 0:07:34]} Bg7 {[%emt 0:01:44]} 20. Bc2 {[%emt 0:05:55]} Nf6 {[%emt 0:02:18]} 21. b4 {[%emt 0:05:02]} Ng4 {[%emt 0:04:52]} ({Better is} 21... Qc7 $14) 22. Ba4 {[%emt 0:06:31]} Rf8 {[%emt 0:00:46]} 23. Be1 {[%emt 0:04:53]} (23. h3 $16 Qh4 24. Qe1 Qxe1 25. Bxe1) 23... Qe7 {[%emt 0:03:26]} (23... g5 $11 {remains equal.}) 24. h3 $16 {[%emt 0:01:02]} Nh6 {[%emt 0:03:05] [#]} 25. fxe5 $1 {[%emt 0:01:14]} Bxe5 {[%emt 0:00:18]} (25... Qxe5 $16 26. Nf4 Nf7) 26. Nd4 $18 {[%emt 0:02:31]} Bb7 {[%emt 0:04:31]} 27. Ne6 {[%emt 0:03:01]} f4 {[%emt 0:00:34]} (27... Rf7 $16 {was worth a try.} 28. Bc3 f4) 28. Bc2 {[%emt 0:03:42]} (28. Nxf8 $18 Qxf8 29. Bd2) 28... Rf7 $16 {[%emt 0:01:51]} 29. c5 {[%emt 0:03:11]} ({White should play} 29. Bc3) 29... Nf5 $16 {[%emt 0:01:22] [#]} 30. Bf2 $1 {[%emt 0:07:48]} ({Weaker is} 30. Nxf4 Rbf8 (30... dxc5 $2 31. Raf3 $19) 31. c6 (31. Ne6 $2 Ng3+ 32. Bxg3 Rxf1+ 33. Kh2 Rxd1 $19) 31... Bc8 $15) (30. Bxf5 Rxf5 31. Qb3 dxc5 $14) 30... Bc8 {[%emt 0:00:40]} 31. Bxf5 {[%emt 0:02:39]} (31. Qe1 $16) 31... Rxf5 $11 {[%emt 0:00:40]} 32. Nd4 {[%emt 0:00:03]} Bxd4 $1 {[%emt 0:03:05]} 33. Qxd4 {[%emt 0:00:01]} Qf7 $1 {[%emt 0:01:00]} 34. cxd6 {[%emt 0:03:27]} Rxd5 {[%emt 0:01:11]} 35. Qc3 {[%emt 0:00:05]} Bb7 {[%emt 0:07:43]} 36. Bc5 {[%emt 0:03:27]} Rg5 {[%emt 0:01:05]} 37. Rf2 {[%emt 0:00:13]} f3 {[%emt 0:04:58]} 38. g4 {[%emt 0:00:50]} ({Reject} 38. gxf3 Qf5 39. Qd3 Qxh3+ 40. Rh2 Qg3 $17) 38... Re8 {[%emt 0:00:50]} 39. Qc1 {[%emt 0:01:02]} Rge5 {[%emt 0:01:23]} 40. Kh2 {[%emt 0:01:22]} Re1 {[%emt 0:00:49]} 41. Qg5 {[%emt 0:05:14]} R8e5 {[%emt 0:04:08]} 42. Qd8+ {[%emt 0:00:29]} Re8 {[%emt 0:00:02]} 43. Qg5 {[%emt 0:00:05]} R8e5 {[%emt 0:04:07]} 44. Qd8+ {[%emt 0:00:05]} Re8 {[%emt 0:00:04]} 1/2-1/2

[Event "XII Cracow ICC-A 2024"]
[Site "Krakow"]
[Date "2024.06.23"]
[Round "3.7"]
[White "Chojnacki, Krzysztof"]
[Black "Vetoshko, Volodymyr"]
[Result "0-1"]
[ECO "D37"]
[WhiteElo "2311"]
[BlackElo "2505"]
[Annotator "TA"]
[PlyCount "102"]
[EventDate "2024.06.20"]
[EventType "swiss"]
[EventCountry "POL"]
[SourceTitle "playchess.com"]
[Source "ChessBase"]
[SourceQuality "1"]
[TimeControl "40/5400+30:1800+30"]

{[%evp 12,102,23,16,13,-16,-14,-40,-61,-45,-3,-56,6,-21,0,-36,-13,-12,-10,-14,-14,-60,-54,-101,-99,-95,-101,-95,-99,-101,-106,-106,-97,-138,-140,-177,-160,-162,-163,-167,-162,-156,-171,-178,-176,-170,-179,-170,-113,-172,-201,-198,-196,-177,-179,-209,-196,-268,-263,-302,-277,-292,-270,-372,-307,-304,-284,-528,-531,-533,-550,-671,-677,-1019,-874,-1149,-1025,-1198,-1113,-1522,-1369,-1075,-487,-964,-1222,-783,-708,-5427,-3971,-29960,-29961,-29965,-29966]} 1. d4 {[%emt 0:00:03]} Nf6 {[%emt 0:08:18]} 2. c4 {[%emt 0:00:16]} e6 {[%emt 0:00:03]} 3. Nf3 {[%emt 0:00:16]} d5 {[%emt 0:00:21]} 4. Nc3 {[%emt 0:00:21]} Nbd7 {[%emt 0:00:20]} 5. Bf4 {[%emt 0:00:38]} Bb4 {[%emt 0:02:09]} 6. cxd5 {[%emt 0:01:05]} exd5 {[%emt 0:00:18]} 7. e3 {[%emt 0:01:32]} Ne4 {[%emt 0:01:02]} 8. Qb3 {[%emt 0:02:53]} c5 {[%emt 0:11:20]} 9. a3 {[%emt 0:07:46]} Bxc3+ {[%emt 0:14:07] Black is slightly better.} 10. bxc3 {[%emt 0:00:39]} O-O {[%emt 0:01:48]} 11. Rc1 {[%emt 0:09:17]} (11. Qc2 $11) 11... Qb6 {[%emt 0:20:06]} (11... c4 $15 12. Qb5 Nb6) 12. Qa2 {[%emt 0:13:34]} cxd4 {[%emt 0:05:57]} 13. exd4 {[%emt 0:03:38][%cal Of1d3]} Re8 {[%emt 0:02:07]} 14. Be2 {[%emt 0:01:43][%cal Oe1g1]} Qa5 {[%emt 0:06:09]} 15. Qb3 {[%emt 0:03:25]} Nb6 {[%emt 0:01:28]} 16. Be3 {[%emt 0:13:07]} (16. O-O $11) 16... Bf5 $36 {[%emt 0:06:38][%mdl 2048] Black is more active.} 17. Qb4 {[%emt 0:05:19]} (17. O-O $15) 17... Qxb4 $17 {[%emt 0:00:26]} 18. cxb4 {[%emt 0:01:00]} Rac8 {[%emt 0:00:40]} 19. O-O {[%emt 0:02:20]} Nc3 {[%emt 0:01:36] A dynamic duo of knights.} 20. Bd1 {[%emt 0:01:33] White is weak on the light squares} Nxd1 {[%emt 0:01:43]} 21. Rfxd1 {[%emt 0:00:57]} Nc4 {[%emt 0:02:38]} 22. Nh4 {[%emt 0:03:25]} Bg4 {[%emt 0:04:18] Black is more active.} 23. Rd3 {[%emt 0:00:59]} Nxe3 {[%emt 0:01:07]} 24. Rxc8 {[%emt 0:00:09]} Rxc8 {[%emt 0:00:08]} ({Don't do} 24... Bxc8 25. fxe3 Be6 26. Rc3 $15) 25. fxe3 $19 {[%emt 0:00:08][%mdl 4096] Endgame. KRB-KRN} Rc1+ {[%emt 0:03:00]} 26. Kf2 {[%emt 0:00:18]} Rc2+ {[%emt 0:00:09]} 27. Kg3 {[%emt 0:03:40]} Be2 {[%emt 0:00:07]} 28. Rb3 {[%emt 0:00:05]} Bc4 {[%emt 0:00:14]} 29. Rb1 {[%emt 0:00:06]} Rc3 {[%emt 0:00:32]} ({Better is} 29... g6 $19 30. a4 Re2) 30. Kf2 {[%emt 0:01:30]} (30. Nf5 $17 {was worth a try.}) 30... Rxa3 {[%emt 0:00:25]} 31. Rb2 {[%emt 0:00:08]} Bd3 {[%emt 0:03:33] Inhibits Nf5.} 32. Nf3 {[%emt 0:01:07]} f6 {[%emt 0:00:14]} 33. Nd2 {[%emt 0:00:41]} Kf7 {[%emt 0:00:18]} 34. Nb3 {[%emt 0:01:52]} (34. g4 $142) 34... b6 {[%emt 0:00:27]} 35. Nc1 {[%emt 0:00:17]} Bc4 {[%emt 0:00:39]} 36. Ne2 {[%emt 0:00:23]} g5 {[%emt 0:01:28]} 37. h4 {[%emt 0:02:22]} Ke6 {[%emt 0:00:45]} 38. hxg5 {[%emt 0:00:08]} fxg5 {[%emt 0:00:02]} 39. Ng1 $2 {[%emt 0:00:12]} (39. Ng3) 39... Ra2 {[%emt 0:02:31]} 40. Rxa2 {[%emt 0:00:17]} Bxa2 {[%emt 0:00:02] KB-KN} 41. Nf3 {[%emt 0:30:25]} h6 {[%emt 0:10:37]} 42. g4 {[%emt 0:00:00]} Bc4 {[%emt 0:06:10]} 43. Ke1 {[%emt 0:00:00]} a5 {[%emt 0:00:35]} 44. bxa5 {[%emt 0:00:00]} bxa5 {[%emt 0:00:00] [#] ...a4 would now be deadly.} 45. Ne5 {[%emt 0:00:00]} Bb5 {[%emt 0:02:17]} 46. Kd2 {[%emt 0:00:00]} Be8 {[%emt 0:01:37]} (46... a4 $142 47. Nf3 a3) 47. Kd3 {[%emt 0:00:00]} (47. Nd3 $142) 47... a4 {[%emt 0:01:44] White must now prevent ...h5.} 48. Kc3 {[%emt 0:00:00]} h5 {[%emt 0:00:12] [#] Strongly threatening ...hxg4.} 49. gxh5 {[%emt 0:00:00]} Bxh5 {[%emt 0:00:01] ( -> ...Kf5)} 50. Nd3 {[%emt 0:00:00]} Kf5 {[%emt 0:01:00]} 51. Nf2 {[%emt 0:00:00]} Bf3 {[%emt 0:01:38] Weighted Error Value: White=0.90/Black=0.20 (precise) .  Mistake:       	White=6     	Black=2      Inaccurate:     	White=7     	Black=1      OK:         	White=9     	Black=19     Best:        	White=3     	Black=2} 0-1

[Event "XII Cracow ICC-A 2024"]
[Site "Krakow"]
[Date "2024.06.23"]
[Round "3.8"]
[White "Janeczko, Jakub"]
[Black "Kosakowski, Jakub"]
[Result "0-1"]
[ECO "B20"]
[WhiteElo "2293"]
[BlackElo "2480"]
[Annotator "RC"]
[PlyCount "60"]
[EventDate "2024.06.20"]
[EventType "swiss"]
[EventCountry "POL"]
[SourceTitle "playchess.com"]
[Source "ChessBase"]
[SourceQuality "1"]
[TimeControl "40/5400+30:1800+30"]

1. e4 {[%emt 0:00:03]} c5 {[%emt 0:00:12]} 2. d3 {[%emt 0:00:55]} Nc6 {[%emt 0:00:47]} 3. g3 {[%emt 0:00:01]} g6 {[%emt 0:00:17]} 4. Bg2 {[%emt 0:00:07]} Bg7 {[%emt 0:00:07]} 5. f4 {[%emt 0:00:03]} b5 {[%emt 0:00:44]} 6. Nf3 {[%emt 0:00:55]} Rb8 {[%emt 0:01:07]} 7. Nc3 {[%emt 0:01:58]} d6 {[%emt 0:07:30]} 8. O-O {[%emt 0:00:14]} b4 {[%emt 0:15:44]} 9. Ne2 {[%emt 0:00:12]} Nf6 {[%emt 0:01:56]} 10. h3 {[%emt 0:00:04]} a5 {[%emt 0:08:27]} 11. g4 {[%emt 0:01:10]} Ba6 {[%emt 0:07:22]} 12. Be3 {[%emt 0:02:50]} Nd7 {[%emt 0:09:30]} 13. Rb1 {[%emt 0:00:24]} a4 {[%emt 0:00:22]} 14. b3 {[%emt 0:05:24]} O-O {[%emt 0:04:27]} 15. f5 {[%emt 0:05:24]} Nde5 {[%emt 0:02:35]} 16. Qd2 {[%emt 0:01:49]} axb3 {[%emt 0:01:51]} 17. axb3 {[%emt 0:00:34]} Bb5 {[%emt 0:01:53]} 18. Bh6 {[%emt 0:09:18]} Ra8 {[%emt 0:00:45]} 19. Bxg7 {[%emt 0:09:04]} Kxg7 {[%emt 0:00:13]} 20. g5 {[%emt 0:04:55]} Ra2 {[%emt 0:04:56]} 21. f6+ {[%emt 0:08:45]} exf6 {[%emt 0:06:54]} 22. gxf6+ {[%emt 0:00:02]} Kh8 {[%emt 0:00:22]} 23. Ng5 {[%emt 0:16:43]} Bxd3 {[%emt 0:01:43]} 24. Nxh7 {[%emt 0:02:01]} Kxh7 {[%emt 0:02:28]} 25. Rf4 {[%emt 0:03:33]} g5 {[%emt 0:07:45]} 26. Rf5 {[%emt 0:00:27]} Rg8 {[%emt 0:00:07]} 27. Nc1 {[%emt 0:06:19]} Rxc2 {[%emt 0:01:26]} 28. Qd1 {[%emt 0:00:01]} Rxg2+ {[%emt 0:00:17]} 29. Kxg2 {[%emt 0:00:01]} Bxe4+ {[%emt 0:00:09]} 30. Kh2 {[%emt 0:00:04]} Qf8 {[%emt 0:00:47]} 0-1

[Event "XII Cracow ICC-A 2024"]
[Site "Krakow"]
[Date "2024.06.23"]
[Round "3.9"]
[White "Fus, Jakub"]
[Black "Lohia, Sohum"]
[Result "1/2-1/2"]
[ECO "A15"]
[WhiteElo "2455"]
[BlackElo "2270"]
[Annotator "TA"]
[PlyCount "89"]
[EventDate "2024.06.20"]
[EventType "swiss"]
[EventCountry "POL"]
[SourceTitle "playchess.com"]
[Source "ChessBase"]
[SourceQuality "1"]
[TimeControl "40/5400+30:1800+30"]

{[%evp 9,89,13,10,2,17,2,10,0,0,0,0,0,0,-1,0,0,0,0,0,0,0,0,0,-6,0,0,0,0,0,0,0,-5,0,0,1,1,2,0,0,0,0,0,10,0,0,0,0,0,0,0,11,0,0,0,0,0,32,26,52,5,13,-12,0,-31,16,-45,20,-22,-7,0,0,0,0,-9,0,-12,-20,-18,0,-14,0,-31]} 1. c4 {[%emt 0:00:03]} Nf6 {[%emt 0:00:10]} 2. Nf3 {[%emt 0:00:27]} e6 {[%emt 0:00:14]} 3. Nc3 {[%emt 0:00:22]} d5 {[%emt 0:00:15]} 4. e3 {[%emt 0:00:09]} b6 {[%emt 0:00:39]} 5. b3 {[%emt 0:01:24]} Bb7 {[%emt 0:00:26]} 6. Bb2 {[%emt 0:00:42]} Nbd7 {[%emt 0:00:28]} 7. Rc1 {[%emt 0:02:00]} a6 {[%emt 0:01:04]} 8. cxd5 {[%emt 0:03:23]} exd5 {[%emt 0:00:20]} 9. Be2 {[%emt 0:01:19]} Bd6 {[%emt 0:01:20]} 10. O-O {[%emt 0:02:07]} O-O {[%emt 0:00:28]} 11. Re1 {[%emt 0:01:05]} Re8 {[%emt 0:01:31]} 12. Bf1 {[%emt 0:00:19]} Ne5 {[%emt 0:03:53]} 13. Nxe5 {[%emt 0:15:43]} Bxe5 {[%emt 0:01:03]} 14. d4 {[%emt 0:00:57]} Bd6 {[%emt 0:00:27]} 15. Rc2 {[%emt 0:00:31]} Qd7 {[%emt 0:07:04]} 16. Bd3 {[%emt 0:13:34]} Ne4 {[%emt 0:02:31]} 17. Qc1 {[%emt 0:03:10]} Nxc3 {[%emt 0:04:43]} 18. Rxc3 {[%emt 0:03:19]} Qe7 {[%emt 0:02:44]} 19. Rc2 {[%emt 0:01:52]} g6 {[%emt 0:01:19]} 20. Qd2 {[%emt 0:00:38]} Qd7 {[%emt 0:11:40]} 21. Rec1 {[%emt 0:02:14]} Rec8 {[%emt 0:02:44]} 22. a4 {[%emt 0:00:50]} a5 {[%emt 0:01:18]} 23. Bb5 {[%emt 0:02:09]} c6 {[%emt 0:02:38]} 24. Be2 {[%emt 0:00:08][%cal Oe3e4]} Bb4 {[%emt 0:02:27]} 25. Qd1 {[%emt 0:01:09]} Bf8 {[%emt 0:01:57]} 26. Bg4 {[%emt 0:00:37]} f5 {[%emt 0:00:11]} 27. Bf3 {[%emt 0:00:05]} Re8 {[%emt 0:05:25]} 28. Ra1 {[%emt 0:01:23]} Re6 {[%emt 0:03:29]} 29. g3 {[%emt 0:00:26]} Bb4 {[%emt 0:02:11]} 30. Ba3 {[%emt 0:01:56]} Bxa3 {[%emt 0:00:40]} 31. Rxa3 {[%emt 0:00:08]} Qd6 {[%emt 0:00:32]} 32. Ra1 {[%emt 0:03:38]} Bc8 {[%emt 0:00:37]} 33. Qd2 {[%emt 0:01:14]} Bd7 {[%emt 0:00:57]} 34. Rb1 {[%emt 0:00:59]} (34. Rb2 $14) 34... Qb4 {[%emt 0:01:00]} 35. Rc3 {[%emt 0:01:30]} Kg7 {[%emt 0:01:28]} 36. Qd3 {[%emt 0:01:22]} Qe7 {[%emt 0:03:42]} (36... Rf6 $15 {deserves consideration.}) 37. Rbc1 {[%emt 0:00:59]} (37. h4 $11) 37... Rf6 {[%emt 0:00:46]} ({Better is} 37... h5 $15) 38. Bg2 {[%emt 0:02:25] The position is equal.} h6 {[%emt 0:01:49]} 39. Re1 {[%emt 0:02:14]} Re6 {[%emt 0:07:06]} 40. Rec1 {[%emt 0:06:14]} Rf6 {[%emt 0:00:31]} 41. Qd2 {[%emt 0:30:30]} Qb4 {[%emt 0:32:07]} 42. Qc2 {[%emt 0:01:01]} Re8 {[%emt 0:03:09]} 43. Qd2 {[%emt 0:00:26]} Ra8 {[%emt 0:00:52]} 44. Ra1 {[%emt 0:01:07]} Re8 {[%emt 0:00:24]} 45. Rac1 {[%emt 0:08:29] Weighted Error Value: White=0.09 (flawless) /Black=0.09 (flawless) .  Mistake:       	White=2     	Black=2      Inaccurate:     	White=3     	Black=2      OK:         	White=13    	Black=11     Best:        	---       	Black=1} 1/2-1/2

[Event "XII Cracow ICC-A 2024"]
[Site "Krakow"]
[Date "2024.06.23"]
[Round "3.10"]
[White "Damen, Jip"]
[Black "Mirzoev, Azer"]
[Result "0-1"]
[ECO "C47"]
[WhiteElo "2259"]
[BlackElo "2448"]
[Annotator "TA"]
[PlyCount "153"]
[EventDate "2024.06.20"]
[EventType "swiss"]
[EventCountry "POL"]
[SourceTitle "playchess.com"]
[Source "ChessBase"]
[SourceQuality "1"]
[TimeControl "40/5400+30:1800+30"]

{[%evp 9,153,19,32,10,46,31,43,35,41,44,51,53,67,65,61,26,28,0,0,-8,0,-7,-12,-7,3,-2,0,0,-6,17,0,-41,0,-3,21,-36,-33,-64,-67,-74,-32,-48,-43,-68,-47,-47,-45,-44,-47,-43,-22,-18,-18,-23,-27,-24,0,0,0,0,20,0,0,0,7,-9,8,-13,19,20,22,0,0,0,0,0,0,0,0,0,0,0,0,0,0,0,0,0,0,0,0,-8,0,0,19,0,0,0,0,0,0,-14,0,-68,-61,-58,-45,-57,-62,-113,-87,-141,-99,-94,-111,-102,-100,-122,-93,-101,-82,-87,-79,-78,-79,-129,-132,-1604,-1366,-1840,-1466,-1840,-1685,-1580,-1514,-1381,-1461,-29969,-29970,-29970,-29970,-29971,-29971,-29966,-29964,-29985]} 1. e4 {[%emt 0:00:10]} e5 {[%emt 0:03:16]} 2. Nf3 {[%emt 0:00:06]} Nc6 {[%emt 0:00:14]} 3. Nc3 {[%emt 0:00:08]} Nf6 {[%emt 0:00:18]} 4. h3 {[%emt 0:00:06]} Be7 {[%emt 0:01:05]} 5. d4 {[%emt 0:00:37]} d6 {[%emt 0:01:33]} 6. dxe5 {[%emt 0:04:02]} dxe5 {[%emt 0:00:23]} 7. Qxd8+ {[%emt 0:00:26]} Bxd8 {[%emt 0:00:08]} 8. Be3 {[%emt 0:01:03] Wards off Nd4. White is slightly better.} a6 {[%emt 0:04:24]} 9. O-O-O {[%emt 0:03:30]} O-O {[%emt 0:00:58]} 10. g4 {[%emt 0:03:59]} Re8 {[%emt 0:02:13]} 11. Bg2 {[%emt 0:02:25]} h6 {[%emt 0:01:12]} 12. Ne1 {[%emt 0:05:39]} Ne7 {[%emt 0:04:01][%cal Bc6e7,Be7g6,Bg6h4,Bh4f3][%mdl 32]} 13. f4 {[%emt 0:06:14]} exf4 {[%emt 0:00:44]} 14. Bxf4 {[%emt 0:00:06]} Ng6 {[%emt 0:00:08]} 15. Bg3 {[%emt 0:00:13][%cal Oe4e5]} c6 {[%emt 0:13:44]} 16. Nd3 {[%emt 0:03:25]} Nh7 {[%emt 0:20:23]} 17. Rhe1 {[%emt 0:01:43]} Bh4 {[%emt 0:00:45]} 18. Bxh4 {[%emt 0:06:05]} Nxh4 {[%emt 0:00:04]} 19. Bf1 {[%emt 0:05:21]} Ng5 {[%emt 0:00:10]} 20. Nc5 {[%emt 0:05:03]} Nhf3 {[%emt 0:07:34][%cal Ob7b6]} 21. Re3 {[%emt 0:01:16]} b6 {[%emt 0:01:08]} 22. Nb3 {[%emt 0:00:40]} (22. Nd3 $11) 22... Ne5 $15 {[%emt 0:03:14]} 23. Rd6 {[%emt 0:03:37]} f6 {[%emt 0:05:40]} 24. Rd1 {[%emt 0:01:28]} Ngf7 {[%emt 0:02:16]} 25. Nd4 {[%emt 0:00:53]} b5 {[%emt 0:07:22]} 26. Nf5 {[%emt 0:04:09]} Be6 {[%emt 0:01:20]} 27. b3 {[%emt 0:05:13]} Rad8 {[%emt 0:01:02]} 28. Rxd8 {[%emt 0:00:33]} Rxd8 {[%emt 0:00:05]} 29. Ne2 {[%emt 0:00:45]} Re8 {[%emt 0:02:44]} 30. Nf4 {[%emt 0:00:36]} g6 {[%emt 0:01:17] Repels Nh5} 31. Nd4 {[%emt 0:01:46]} Bd7 {[%emt 0:00:09]} 32. Nd3 {[%emt 0:01:14]} Kg7 {[%emt 0:03:25]} 33. Nc5 {[%emt 0:00:25][%cal Oc5d7]} Bc8 {[%emt 0:00:11]} 34. a4 {[%emt 0:02:01]} Nd8 {[%emt 0:02:55]} 35. a5 {[%emt 0:01:58]} Kf7 {[%emt 0:02:17]} 36. b4 {[%emt 0:00:59]} Ke7 {[%emt 0:00:07]} 37. Re2 {[%emt 0:02:37]} Rh8 {[%emt 0:00:57]} (37... Nb7 $5) 38. Rg2 {[%emt 0:05:09]} Ndf7 {[%emt 0:06:17]} 39. Be2 {[%emt 0:01:07]} Nd6 {[%emt 0:00:05]} 40. h4 {[%emt 0:01:12]} Nb7 {[%emt 0:00:44]} 41. Ndb3 {[%emt 0:35:46]} Nxc5 {[%emt 0:31:11]} 42. Nxc5 {[%emt 0:00:05]} Nd7 {[%emt 0:02:30]} 43. Nb3 {[%emt 0:03:34]} Bb7 {[%emt 0:00:27][%cal Oc6c5]} 44. Rg3 {[%emt 0:01:55]} Ne5 {[%emt 0:00:00]} 45. Nc5 {[%emt 0:00:00]} Bc8 {[%emt 0:00:00]} 46. Rg1 {[%emt 0:00:00]} Re8 {[%emt 0:00:00]} 47. Rd1 {[%emt 0:00:00]} Rd8 {[%emt 0:00:00]} (47... Bxg4 48. Bxg4 Nxg4 49. Rd7+ (49. Nxa6 h5 $14) 49... Kf8 50. Nxa6 $16) 48. Rg1 {[%emt 0:00:00]} Rd4 {[%emt 0:00:00]} 49. c3 {[%emt 0:00:00]} Rd8 {[%emt 0:00:00]} 50. Rg3 {[%emt 0:00:00]} Re8 {[%emt 0:00:00]} 51. Kd2 {[%emt 0:00:00]} Nd7 {[%emt 0:00:00]} 52. Nb3 {[%emt 0:00:00]} Kd6 {[%emt 0:00:00]} 53. Bd3 {[%emt 0:00:00]} g5 {[%emt 0:00:00]} 54. hxg5 {[%emt 0:00:16]} hxg5 {[%emt 0:00:00]} 55. Rf3 {[%emt 0:02:09]} Rf8 {[%emt 0:00:00]} 56. Rg3 {[%emt 0:01:58]} ({White should try} 56. Be2 $11) 56... c5 {[%emt 0:00:00] aiming for ...c4.} 57. Be2 {[%emt 0:01:33]} cxb4 {[%emt 0:00:00]} 58. cxb4 {[%emt 0:00:17]} Ne5 {[%emt 0:00:00] Prevents Rd3+.} 59. Nd4 {[%emt 0:02:22]} ({White should play} 59. Nc5 $15) 59... Rh8 $17 {[%emt 0:00:00]} 60. Nf3 {[%emt 0:08:19]} (60. Rg1 $142) 60... Nc6 {[%emt 0:00:00] Black is more active.} ({Worse is} 60... Bxg4 61. Nxe5 Kxe5 62. Rxg4 $18 (62. Bxg4 Kxe4 63. Bd7 Kd4 $18)) (60... Nxg4 $6 61. Nxg5 fxg5 62. Bxg4 $11) 61. e5+ {[%emt 0:01:36]} Nxe5 {[%emt 0:00:00]} ({But not} 61... fxe5 62. Nxg5 Rf8 (62... Nxb4 $2 {is the wrong capture.} 63. Nf7+ Kd5 64. Nxh8 $18) 63. Rf3 Rxf3 64. Bxf3 $15) 62. Nxe5 {[%emt 0:00:07]} Kxe5 {[%emt 0:00:00][%mdl 4096] Endgame. KRB-KRB} 63. Re3+ {[%emt 0:00:22]} Kd6 {[%emt 0:00:00]} 64. Rd3+ {[%emt 0:00:10]} Ke7 {[%emt 0:00:17]} 65. Rc3 {[%emt 0:00:18]} Rd8+ {[%emt 0:01:54]} 66. Ke3 {[%emt 0:00:07]} Bb7 $1 {[%emt 0:00:08] Prevents Rc6} 67. Bd3 {[%emt 0:02:54] [#]} ({Better is} 67. Rc7+ Rd7 68. Rc2) 67... Rc8 $1 {[%emt 0:03:10]} 68. Rxc8 $4 {[%emt 0:02:08][%mdl 8192] Loses the game.} (68. Rb3 $17) 68... Bxc8 {[%emt 0:00:04] KB-KB} 69. Be2 {[%emt 0:00:03]} f5 {[%emt 0:01:31]} 70. gxf5 {[%emt 0:00:04]} Bxf5 {[%emt 0:00:03]} 71. Bf3 {[%emt 0:00:07]} Bc8 {[%emt 0:00:07]} 72. Kd4 {[%emt 0:00:05]} Kd6 {[%emt 0:00:04] ( -> ...g4)} 73. Ba8 {[%emt 0:00:28]} Kc7 {[%emt 0:02:51] Black mates.} 74. Be4 {[%emt 0:00:45] [#]} g4 $1 {[%emt 0:00:57]} 75. Bd3 {[%emt 0:01:23]} Bb7 {[%emt 0:00:26]} 76. Ke3 {[%emt 0:00:07]} g3 {[%emt 0:00:10]} 77. Kd4 {Weighted Error Value: White=0.12 (very precise) /Black=0.09 (flawless) .  Loses game:     	White=1     	---        Mistake:       	White=5     	---        Inaccurate:     	White=5     	Black=4      OK:         	White=23    	Black=14     Best:        	White=3     	Black=2      Strong:       	---       	Black=2} 0-1